[Event "WSTCC-50 2020"]
[Site "Prague"]
[Date "2020.03.10"]
[Round "5.47"]
[White "Berndt, Matthias"]
[Black "Thurstan, Tim M"]
[Result "0-1"]
[ECO "C00"]
[WhiteElo "2098"]
[BlackElo "1987"]
[Annotator "ChessBase"]
[PlyCount "72"]
[EventDate "2020.03.06"]
[EventType "team-tourn"]
[EventCountry "CZE"]
[SourceTitle "playchess.com"]
[Source "ChessBase"]
[SourceQuality "1"]
[TimeControl "40/5400+30:1800+30"]

1. e4 e6 2. d3 d5 3. Nd2 Nf6 4. Ngf3 c5 5. g3 Be7 6. Bg2 b5 7. O-O Nc6 8. exd5 exd5 9. d4 c4 10. Ne5 Bb7 11. Ndf3 O-O 12. c3 Rc8 13. h4 Ne4 14. Bh3 f5 15. Bf4 a5 16. a3 Ra8 17. Ne1 b4 18. Nxc6 Bxc6 19. axb4 axb4 20. cxb4 Bxb4 21. Nc2 Ba4 22. Bxf5 Rxf5 23. Rxa4 Rxa4 24. Ne3 Ra2 25. Nxf5 Rxb2 26. Qg4 Qf8 27. Be5 Nf6 28. Qf3 Rb3 29. Qf4 Ba3 30. Ra1 c3 31. Kg2 c2 32. Rxa3 Qxa3 33. Qg5 Qf8 34. Bd6 Ne4 35. Ne7+ Kh8 36. Ng6+ Kg8 0-1

[Event "WSTCC-50 2020"]
[Site "Prague"]
[Date "2020.03.10"]
[Round "5.48"]
[White "Lawrence, Paul"]
[Black "Haentsch, Ralf"]
[Result "1/2-1/2"]
[ECO "A22"]
[WhiteElo "1894"]
[BlackElo "2087"]
[Annotator "ChessBase"]
[PlyCount "39"]
[EventDate "2020.03.06"]
[EventType "team-tourn"]
[EventCountry "CZE"]
[SourceTitle "playchess.com"]
[Source "ChessBase"]
[SourceQuality "1"]
[TimeControl "40/5400+30:1800+30"]

1. c4 {[%emt 0:00:00]} e5 {[%emt 0:00:00]} 2. Nc3 {[%emt 0:00:00]} Nf6 {[%emt 0:00:00]} 3. g3 {[%emt 0:00:01]} Bb4 {[%emt 0:01:04]} 4. Bg2 {[%emt 0:03:04]} Bxc3 {[%emt 0:01:23]} 5. bxc3 d6 {[%emt 0:00:17]} 6. Rb1 {[%emt 0:08:04]} Nc6 {[%emt 0:03:21]} 7. Nf3 {[%emt 0:03:32]} O-O {[%emt 0:00:51]} 8. d3 Rb8 {[%emt 0:04:18]} 9. O-O {[%emt 0:10:41]} h6 {[%emt 0:03:39]} 10. Qc2 {[%emt 0:07:27]} Be6 {[%emt 0:04:11]} 11. Rd1 {[%emt 0:07:42]} Qc8 {[%emt 0:07:12]} 12. Ba3 {[%emt 0:06:08]} b6 {[%emt 0:03:59]} 13. e4 {[%emt 0:08:31]} Re8 {[%emt 0:08:06]} 14. Qa4 {[%emt 0:07:05]} Bd7 {[%emt 0:01:10]} 15. Qc2 {[%emt 0:00:24]} a5 {[%emt 0:05:42]} 16. Re1 {[%emt 0:02:17]} Be6 {[%emt 0:07:29]} 17. Qa4 {[%emt 0:00:58]} Bd7 {[%emt 0:01:02]} 18. Qc2 {[%emt 0:00:12]} Qa6 {[%emt 0:02:50]} 19. Rbd1 {[%emt 0:01:28]} Rbd8 {[%emt 0:01:19]} 20. Nd2 {[%emt 0:02:03]} 1/2-1/2

[Event "WSTCC-50 2020"]
[Site "Prague"]
[Date "2020.03.11"]
[Round "6.39"]
[White "Thurstan, Tim M"]
[Black "Zimmermann, Rolf"]
[Result "1/2-1/2"]
[ECO "A03"]
[WhiteElo "1987"]
[BlackElo "2090"]
[Annotator "ChessBase"]
[PlyCount "59"]
[EventDate "2020.03.06"]
[EventType "team-tourn"]
[EventCountry "CZE"]
[SourceTitle "playchess.com"]
[Source "ChessBase"]
[SourceQuality "1"]
[TimeControl "40/5400+30:1800+30"]

1. f4 {[%emt 0:00:00]} d5 {[%emt 0:00:00]} 2. Nf3 {[%emt 0:00:00]} c5 {[%emt 0:00:00]} 3. g3 {[%emt 0:00:26]} Nc6 {[%emt 0:00:37]} 4. Bg2 {[%emt 0:00:40]} Nf6 {[%emt 0:00:59]} 5. d3 {[%emt 0:00:09]} g6 {[%emt 0:01:14]} 6. O-O {[%emt 0:01:44]} Bg7 {[%emt 0:02:58]} 7. c3 {[%emt 0:00:07]} O-O {[%emt 0:00:25]} 8. Na3 {[%emt 0:00:03]} b6 {[%emt 0:01:26]} 9. Qa4 {[%emt 0:04:23]} Bd7 {[%emt 0:01:00]} 10. e4 {[%emt 0:06:59]} e6 {[%emt 0:21:23]} 11. Qc2 Ne8 12. Be3 {[%emt 0:08:28]} Rc8 {[%emt 0:19:48]} 13. Qd2 {[%emt 0:10:56]} Nd6 {[%emt 0:04:53]} 14. e5 {[%emt 0:02:32]} Nf5 {[%emt 0:00:29]} 15. Bf2 {[%emt 0:03:38]} a6 {[%emt 0:02:21]} 16. g4 {[%emt 0:05:56]} Nfe7 {[%emt 0:00:48]} 17. Nc2 {[%emt 0:00:41]} f6 {[%emt 0:04:37]} 18. Rae1 {[%emt 0:02:47]} fxe5 {[%emt 0:01:06]} 19. fxe5 {[%emt 0:00:48]} Qc7 {[%emt 0:01:01]} 20. Bg3 {[%emt 0:02:44]} h6 {[%emt 0:02:05]} 21. Rf2 {[%emt 0:06:42]} Rce8 {[%emt 0:00:37]} 22. d4 {[%emt 0:02:22]} c4 {[%emt 0:00:59]} 23. Ne3 {[%emt 0:01:21]} Rf7 {[%emt 0:01:52]} 24. Qc2 {[%emt 0:05:44]} Ref8 {[%emt 0:00:31]} 25. Ref1 {[%emt 0:06:33]} Be8 {[%emt 0:00:07]} 26. g5 {[%emt 0:09:09]} h5 {[%emt 0:01:52]} 27. Bh3 {[%emt 0:03:16]} Qd7 {[%emt 0:01:54]} 28. Nh4 {[%emt 0:04:03]} Rxf2 {[%emt 0:00:47]} 29. Rxf2 {[%emt 0:00:08]} Rxf2 {[%emt 0:00:18]} 30. Kxf2 1/2-1/2

[Event "WSTCC-50 2020"]
[Site "Prague"]
[Date "2020.03.11"]
[Round "6.40"]
[White "Hoehn, Michael"]
[Black "Lawrence, Paul"]
[Result "0-1"]
[ECO "E65"]
[WhiteElo "2036"]
[BlackElo "1894"]
[Annotator "ChessBase"]
[PlyCount "68"]
[EventDate "2020.03.06"]
[EventType "team-tourn"]
[EventCountry "CZE"]
[SourceTitle "playchess.com"]
[Source "ChessBase"]
[SourceQuality "1"]
[TimeControl "40/5400+30:1800+30"]

1. Nf3 {[%emt 0:00:00]} Nf6 {[%emt 0:00:00]} 2. d4 {[%emt 0:00:00]} g6 {[%emt 0:00:00]} 3. g3 {[%emt 0:00:09]} Bg7 {[%emt 0:00:10]} 4. Bg2 {[%emt 0:00:06]} O-O {[%emt 0:00:24]} 5. O-O {[%emt 0:00:47]} d6 {[%emt 0:00:33]} 6. c4 {[%emt 0:00:14]} c5 {[%emt 0:00:49]} 7. Nc3 {[%emt 0:00:59]} Nbd7 {[%emt 0:02:40]} 8. e4 {[%emt 0:03:33]} cxd4 {[%emt 0:07:54]} 9. Nxd4 {[%emt 0:00:10]} Ne5 {[%emt 0:03:47]} 10. b3 Bg4 {[%emt 0:10:29]} 11. f3 {[%emt 0:07:08]} Bd7 {[%emt 0:04:43]} 12. Kh1 {[%emt 0:01:43]} a6 13. Be3 h5 14. f4 Nfg4 15. Bg1 Nc6 16. h3 Nxd4 17. Bxd4 e5 18. hxg4 exd4 19. Nd5 Bxg4 20. Qd3 Re8 21. Rf2 f5 22. Re1 Rc8 23. Qd2 h4 24. Kh2 b5 25. exf5 gxf5 26. Rff1 bxc4 27. Rxe8+ Qxe8 28. Re1 Qd8 29. Re7 c3 30. Qe1 c2 31. Qe6+ Kh8 32. Nf6 hxg3+ 33. Kxg3 c1=Q 34. Kh4 Qxf4 0-1

[Event "WSTCC-50 2020"]
[Site "Prague"]
[Date "2020.03.11"]
[Round "6.47"]
[White "Scheckenbach, Franz"]
[Black "Sura, Jaroslav"]
[Result "1/2-1/2"]
[ECO "C55"]
[WhiteElo "2101"]
[BlackElo "2013"]
[Annotator "ChessBase"]
[PlyCount "22"]
[EventDate "2020.03.06"]
[EventType "team-tourn"]
[EventCountry "CZE"]
[SourceTitle "playchess.com"]
[Source "ChessBase"]
[SourceQuality "1"]
[TimeControl "40/5400+30:1800+30"]

1. e4 e5 2. Nf3 Nc6 3. Bc4 Nf6 4. d3 h6 5. c3 d6 6. Nbd2 g5 7. h3 Bg7 8. Bb3 Ne7 9. Nf1 Ng6 10. g3 c6 11. h4 g4 1/2-1/2

[Event "WSTCC-50 2020"]
[Site "Prague"]
[Date "2020.03.11"]
[Round "6.48"]
[White "Ruzicka, Tomas"]
[Black "Arndt, Olaf"]
[Result "0-1"]
[ECO "B01"]
[WhiteElo "1748"]
[BlackElo "1887"]
[Annotator "NA"]
[PlyCount "74"]
[EventDate "2020.03.06"]
[EventType "team-tourn"]
[EventCountry "CZE"]
[SourceTitle "playchess.com"]
[Source "ChessBase"]
[SourceQuality "1"]
[TimeControl "40/5400+30:1800+30"]

1. e4 {[%emt 0:00:00]} d5 {[%emt 0:00:00]} 2. e5 c5 {[%emt 0:00:00]} 3. f4 {[%emt 0:00:00]} Nc6 {[%emt 0:00:00]} 4. Nf3 {[%emt 0:00:00]} Nh6 {[%emt 0:00:03]} 5. Be2 {[%emt 0:00:20]} Nf5 {[%emt 0:03:30]} 6. O-O {[%emt 0:00:21]} Nfd4 {[%emt 0:01:01]} 7. c3 Nxe2+ {[%emt 0:00:07]} 8. Qxe2 {[%emt 0:01:14]} Qb6 {[%emt 0:11:19]} 9. d3 {[%emt 0:00:30]} Bf5 {[%emt 0:00:24]} 10. b3 {[%emt 0:03:24]} (10. Be3 $11) 10... c4+ {[%emt 0:00:34]} 11. Qf2 {[%emt 0:05:26]} ({Better is} 11. Be3 $1 $15 cxd3 12. Qf2) 11... Qxf2+ {[%emt 0:02:45]} 12. Rxf2 {[%emt 0:00:51]} Bxd3 {[%emt 0:00:20]} 13. Ba3 {[%emt 0:03:44]} e6 {[%emt 0:02:53]} 14. Bxf8 {[%emt 0:00:15]} Rxf8 {[%emt 0:00:17]} 15. Na3 {[%emt 0:01:03]} cxb3 {[%emt 0:07:45]} 16. axb3 {[%emt 0:01:06]} Ke7 $17 {[%emt 0:03:07]} 17. Rd1 {[%emt 0:03:20]} Ba6 {[%emt 0:01:03]} 18. Nd2 {[%emt 0:03:34]} b6 {[%emt 0:08:35]} 19. b4 {[%emt 0:00:48]} Bd3 {[%emt 0:05:14]} 20. Nb3 {[%emt 0:03:11]} Bc4 {[%emt 0:01:14]} 21. Nd2 {[%emt 0:00:39]} b5 {[%emt 0:00:25]} 22. Ndxc4 {[%emt 0:02:42]} bxc4 {[%emt 0:00:50]} 23. Nb5 {[%emt 0:00:15]} a5 {[%emt 0:00:56]} 24. bxa5 {[%emt 0:02:06]} Rxa5 {[%emt 0:00:41]} 25. Nd6 {[%emt 0:01:01]} Rb8 {[%emt 0:01:38]} 26. g3 {[%emt 0:05:51]} Ra3 {[%emt 0:03:13]} 27. Rc1 {[%emt 0:04:01]} f6 {[%emt 0:01:17]} 28. Re1 {[%emt 0:09:59]} Rxc3 {[%emt 0:02:03]} 29. Ree2 {[%emt 0:01:07]} fxe5 {[%emt 0:02:14]} 30. fxe5 {[%emt 0:00:40]} Nxe5 {[%emt 0:02:07]} 31. Nf5+ {[%emt 0:01:26]} exf5 {[%emt 0:00:16]} 32. Rxe5+ {[%emt 0:00:04]} Kd6 {[%emt 0:00:08]} 33. Rexf5 {[%emt 0:03:12]} Rd3 {[%emt 0:01:52]} 34. Rf7 {[%emt 0:00:22]} c3 {[%emt 0:01:00]} 35. Rxg7 {[%emt 0:02:02]} Rd2 {[%emt 0:00:25]} 36. Rf6+ {[%emt 0:02:47]} Ke5 {[%emt 0:00:07]} 37. Rgf7 {[%emt 0:00:09]} Rb1+ {[%emt 0:00:25]} 0-1

[Event "WSTCC-50 2020"]
[Site "Prague"]
[Date "2020.03.12"]
[Round "7.17"]
[White "Pekarek, Ales"]
[Black "Pieper, Thomas"]
[Result "1/2-1/2"]
[ECO "D78"]
[WhiteElo "2274"]
[BlackElo "2258"]
[Annotator "ChessBase"]
[PlyCount "83"]
[EventDate "2020.03.06"]
[EventType "team-tourn"]
[EventCountry "CZE"]
[SourceTitle "playchess.com"]
[Source "ChessBase"]
[SourceQuality "1"]
[TimeControl "40/5400+30:1800+30"]

1. d4 {[%emt 0:00:00]} d5 {[%emt 0:00:00]} 2. Nf3 {[%emt 0:00:00]} Nf6 {[%emt 0:00:00]} 3. g3 {[%emt 0:00:09]} g6 {[%emt 0:00:47]} 4. Bg2 {[%emt 0:00:18]} Bg7 {[%emt 0:00:08]} 5. c4 {[%emt 0:00:46]} c6 {[%emt 0:01:01]} 6. O-O {[%emt 0:01:47]} O-O {[%emt 0:00:40]} 7. Qb3 {[%emt 0:07:16]} dxc4 {[%emt 0:14:20]} 8. Qxc4 {[%emt 0:00:07]} Nbd7 {[%emt 0:00:07]} 9. Nc3 {[%emt 0:01:51]} Qa5 {[%emt 0:08:36]} 10. Re1 {[%emt 0:06:59]} Qh5 {[%emt 0:17:33]} 11. h3 {[%emt 0:11:06]} Nb6 {[%emt 0:01:38]} 12. Qc5 {[%emt 0:00:07]} Qxc5 {[%emt 0:01:15]} 13. dxc5 {[%emt 0:00:07]} Nbd5 {[%emt 0:02:40]} 14. Bd2 {[%emt 0:01:33]} Nb4 {[%emt 0:08:25]} 15. Rec1 {[%emt 0:02:15]} Na6 {[%emt 0:04:11]} 16. Na4 {[%emt 0:03:33]} h6 {[%emt 0:06:24]} 17. Bc3 {[%emt 0:04:50]} Be6 {[%emt 0:01:38]} 18. b4 {[%emt 0:14:27]} Nc7 {[%emt 0:05:23]} 19. Be5 {[%emt 0:04:07]} Nb5 {[%emt 0:01:18]} 20. Nb2 {[%emt 0:06:13]} Na3 {[%emt 0:01:06]} 21. Nd4 {[%emt 0:01:41]} Bd5 {[%emt 0:01:37]} 22. f3 {[%emt 0:08:26]} a5 {[%emt 0:08:07]} 23. e4 {[%emt 0:01:44]} axb4 {[%emt 0:02:34]} 24. exd5 {[%emt 0:00:39]} Nxd5 {[%emt 0:00:11]} 25. Bxg7 {[%emt 0:00:44]} Kxg7 {[%emt 0:00:01]} 26. Re1 {[%emt 0:07:11]} Rfd8 {[%emt 0:00:52]} 27. Rac1 {[%emt 0:01:30]} Nc3 {[%emt 0:02:42]} 28. Nb3 {[%emt 0:00:41]} Nxa2 {[%emt 0:03:01]} 29. Rcd1 {[%emt 0:00:30]} Kf6 {[%emt 0:01:30]} 30. Rxd8 {[%emt 0:04:36]} Rxd8 {[%emt 0:00:01]} 31. Bf1 {[%emt 0:00:22]} Nc2 {[%emt 0:01:58]} 32. Rd1 {[%emt 0:00:32]} Rxd1 {[%emt 0:00:45]} 33. Nxd1 {[%emt 0:00:02]} Nc3 {[%emt 0:01:09]} 34. Nb2 {[%emt 0:00:42]} e5 {[%emt 0:01:41]} 35. Nc4 {[%emt 0:02:58]} Nd4 {[%emt 0:01:20]} 36. Ncd2 {[%emt 0:02:06]} Nxb3 {[%emt 0:01:26]} 37. Nxb3 {[%emt 0:00:03]} Na4 {[%emt 0:00:29]} 38. Kf2 {[%emt 0:01:26]} b6 {[%emt 0:00:42]} 39. cxb6 {[%emt 0:00:32]} Nxb6 {[%emt 0:00:01]} 40. Nc5 {[%emt 0:00:00]} Ke7 {[%emt 0:00:00]} 41. Ke3 {[%emt 0:02:56]} f5 {[%emt 0:07:24]} 42. Nd3 1/2-1/2

[Event "WSTCC-50 2020"]
[Site "Prague"]
[Date "2020.03.12"]
[Round "7.19"]
[White "Pastircak, Milan"]
[Black "Scheckenbach, Franz"]
[Result "1-0"]
[ECO "A05"]
[WhiteElo "2277"]
[BlackElo "2101"]
[Annotator "ChessBase"]
[PlyCount "91"]
[EventDate "2020.03.06"]
[EventType "team-tourn"]
[EventCountry "CZE"]
[SourceTitle "playchess.com"]
[Source "ChessBase"]
[SourceQuality "1"]
[TimeControl "40/5400+30:1800+30"]

1. Nf3 {[%emt 0:00:00]} Nf6 {[%emt 0:00:00]} 2. g3 {[%emt 0:00:29]} g6 {[%emt 0:01:07]} 3. b3 {[%emt 0:00:06]} Bg7 {[%emt 0:00:08]} 4. Bb2 {[%emt 0:00:02]} O-O {[%emt 0:00:09]} 5. Bg2 {[%emt 0:02:13]} c5 {[%emt 0:01:49]} 6. c4 {[%emt 0:00:39]} d5 {[%emt 0:04:43]} 7. cxd5 {[%emt 0:00:22]} Nxd5 {[%emt 0:00:08]} 8. Bxg7 {[%emt 0:00:24]} Kxg7 {[%emt 0:00:04]} 9. O-O {[%emt 0:00:06]} Nc6 {[%emt 0:00:35]} 10. d4 {[%emt 0:00:36]} cxd4 {[%emt 0:09:10]} 11. Nxd4 {[%emt 0:00:06]} e5 {[%emt 0:00:21]} 12. Nxc6 {[%emt 0:11:47]} bxc6 {[%emt 0:00:06]} 13. Qc2 {[%emt 0:00:48]} Qb6 {[%emt 0:05:21]} 14. Nc3 {[%emt 0:05:55]} Nb4 {[%emt 0:14:16]} 15. Qb2 {[%emt 0:08:55]} Be6 {[%emt 0:10:44]} 16. Rfd1 {[%emt 0:12:32]} Rad8 {[%emt 0:05:04]} 17. a3 {[%emt 0:06:31]} Na6 {[%emt 0:00:42]} 18. b4 {[%emt 0:00:13]} f6 {[%emt 0:08:14]} 19. Qc2 {[%emt 0:07:13]} Nb8 {[%emt 0:08:50]} 20. Bf3 {[%emt 0:09:55]} Rxd1+ {[%emt 0:05:16]} 21. Rxd1 {[%emt 0:00:05]} Rd8 {[%emt 0:00:11]} 22. Na4 {[%emt 0:04:58]} Rxd1+ {[%emt 0:01:54]} 23. Qxd1 {[%emt 0:00:03]} Qd4 {[%emt 0:04:43]} 24. Qxd4 {[%emt 0:09:49]} exd4 {[%emt 0:00:05]} 25. Nc5 {[%emt 0:00:59]} Bc4 {[%emt 0:01:01]} 26. Kf1 {[%emt 0:01:01]} f5 {[%emt 0:06:28]} 27. Bg2 {[%emt 0:09:40]} Kf6 {[%emt 0:01:56]} 28. f4 {[%emt 0:01:03]} Ke7 {[%emt 0:01:40]} 29. Ke1 {[%emt 0:01:01]} Kd6 {[%emt 0:00:19]} 30. Kd2 {[%emt 0:00:39]} Kc7 {[%emt 0:03:56]} 31. e3 {[%emt 0:00:17]} dxe3+ {[%emt 0:00:15]} 32. Kxe3 {[%emt 0:00:01]} Kd6 {[%emt 0:02:25]} 33. Kd4 {[%emt 0:01:18]} Bf7 {[%emt 0:00:46]} 34. Bf3 {[%emt 0:00:41]} h6 {[%emt 0:00:53]} 35. h4 {[%emt 0:01:05]} Be8 {[%emt 0:00:24]} 36. Be2 {[%emt 0:01:32]} Nd7 {[%emt 0:00:54]} 37. Nxd7 {[%emt 0:01:01]} Bxd7 {[%emt 0:00:03]} 38. h5 {[%emt 0:00:15]} Be8 {[%emt 0:00:38]} 39. Bd3 {[%emt 0:00:54]} a5 {[%emt 0:01:50]} 40. bxa5 {[%emt 0:00:00]} c5+ {[%emt 0:00:00]} 41. Kc3 {[%emt 0:05:39]} Kd5 {[%emt 0:12:18]} 42. hxg6 {[%emt 0:05:25]} Bxg6 {[%emt 0:00:39]} 43. a6 {[%emt 0:00:02]} Kc6 {[%emt 0:00:22]} 44. a7 {[%emt 0:00:28]} Kb7 {[%emt 0:00:15]} 45. Kc4 {[%emt 0:00:04]} Kxa7 {[%emt 0:00:05]} 46. Kxc5 {[%emt 0:00:10]} 1-0

[Event "WSTCC-50 2020"]
[Site "Prague"]
[Date "2020.03.12"]
[Round "7.20"]
[White "Arndt, Olaf"]
[Black "Vrana, Frantisek"]
[Result "0-1"]
[ECO "B01"]
[WhiteElo "1887"]
[BlackElo "2231"]
[Annotator "ChessBase"]
[PlyCount "86"]
[EventDate "2020.03.06"]
[EventType "team-tourn"]
[EventCountry "CZE"]
[SourceTitle "playchess.com"]
[Source "ChessBase"]
[SourceQuality "1"]
[TimeControl "40/5400+30:1800+30"]

1. e4 {[%emt 0:00:00]} d5 {[%emt 0:00:00]} 2. exd5 {[%emt 0:00:00]} Qxd5 {[%emt 0:00:00]} 3. Nc3 {[%emt 0:00:00]} Qa5 {[%emt 0:00:00]} 4. Bc4 {[%emt 0:00:26]} Nf6 {[%emt 0:00:07]} 5. d4 {[%emt 0:01:06]} Bf5 {[%emt 0:00:43]} 6. Nf3 {[%emt 0:00:16]} e6 {[%emt 0:00:35]} 7. O-O {[%emt 0:00:16]} c6 {[%emt 0:01:34]} 8. Re1 {[%emt 0:00:27]} Bb4 {[%emt 0:01:45]} 9. Bd2 {[%emt 0:01:21]} O-O {[%emt 0:01:33]} 10. a3 {[%emt 0:01:16]} Bxc3 {[%emt 0:00:23]} 11. Bxc3 {[%emt 0:00:07]} Qc7 {[%emt 0:00:08]} 12. h3 {[%emt 0:03:09]} Nbd7 {[%emt 0:01:44]} 13. Bd3 {[%emt 0:03:26]} Bxd3 {[%emt 0:02:53]} 14. Qxd3 {[%emt 0:00:50]} Rfd8 {[%emt 0:00:35]} 15. Qe2 {[%emt 0:01:45]} h6 {[%emt 0:08:05]} 16. Rad1 {[%emt 0:01:50]} a5 {[%emt 0:01:28]} 17. Nh2 {[%emt 0:03:50]} b5 {[%emt 0:06:25]} 18. Bd2 {[%emt 0:02:21]} Qd6 {[%emt 0:11:43]} 19. c4 {[%emt 0:04:58]} Qb8 {[%emt 0:05:23]} 20. b4 {[%emt 0:10:38]} axb4 {[%emt 0:03:44]} 21. Bxb4 {[%emt 0:00:49]} Qb6 {[%emt 0:03:06]} 22. Nf3 {[%emt 0:02:36]} Ra4 {[%emt 0:04:10]} 23. Ne5 {[%emt 0:02:04]} bxc4 {[%emt 0:01:59]} 24. Nxc4 {[%emt 0:09:14]} Qb5 {[%emt 0:01:24]} 25. Qc2 {[%emt 0:01:16]} Nd5 {[%emt 0:01:47]} 26. Ne5 {[%emt 0:05:11]} Nxe5 {[%emt 0:03:03]} 27. dxe5 {[%emt 0:00:50]} Rc8 {[%emt 0:00:21]} 28. Bd6 {[%emt 0:02:07]} c5 {[%emt 0:00:46]} 29. Rb1 {[%emt 0:05:32]} Qa6 {[%emt 0:03:04]} 30. Rb7 {[%emt 0:04:31]} Rxa3 {[%emt 0:02:14]} 31. Reb1 {[%emt 0:00:52]} Ra2 {[%emt 0:02:52]} 32. Qe4 {[%emt 0:02:08]} Ra1 {[%emt 0:03:11]} 33. Qf3 {[%emt 0:08:35]} Qxb7 {[%emt 0:00:40]} 34. Rxa1 {[%emt 0:00:04]} c4 {[%emt 0:00:39]} 35. Qe4 {[%emt 0:03:13]} c3 {[%emt 0:01:17]} 36. Qc2 {[%emt 0:02:29]} Nf4 {[%emt 0:02:55]} 37. f3 {[%emt 0:01:44]} Qb2 {[%emt 0:00:19]} 38. Ra2 {[%emt 0:01:26]} Qb6+ {[%emt 0:04:00]} 39. Kh2 {[%emt 0:00:52]} Qe3 {[%emt 0:00:00]} 40. h4 {[%emt 0:00:00]} Nd5 {[%emt 0:00:00]} 41. Ra4 {[%emt 0:05:46]} Qd2 {[%emt 0:05:45]} 42. Qxd2 {[%emt 0:02:11]} cxd2 {[%emt 0:00:07]} 43. Rd4 {[%emt 0:00:06]} Ne3 {[%emt 0:00:06]} 0-1

[Event "WSTCC-50 2020"]
[Site "Prague"]
[Date "2020.03.12"]
[Round "7.23"]
[White "Findlay, Ian T."]
[Black "Thurstan, Tim M"]
[Result "1/2-1/2"]
[ECO "C04"]
[WhiteElo "2159"]
[BlackElo "1987"]
[Annotator "ChessBase"]
[PlyCount "56"]
[EventDate "2020.03.06"]
[EventType "team-tourn"]
[EventCountry "CZE"]
[SourceTitle "playchess.com"]
[Source "ChessBase"]
[SourceQuality "1"]
[TimeControl "40/5400+30:1800+30"]

1. e4 {[%emt 0:00:00]} e6 {[%emt 0:00:00]} 2. d4 {[%emt 0:00:00]} d5 {[%emt 0:00:00]} 3. Nd2 {[%emt 0:00:00]} Nc6 {[%emt 0:00:00]} 4. Ngf3 {[%emt 0:00:07]} Nf6 {[%emt 0:00:00]} 5. e5 {[%emt 0:00:11]} Nd7 {[%emt 0:00:00]} 6. Be2 {[%emt 0:00:06]} f6 {[%emt 0:00:10]} 7. exf6 {[%emt 0:00:07]} Qxf6 {[%emt 0:00:04]} 8. Nf1 {[%emt 0:00:11]} Bd6 {[%emt 0:00:10]} 9. Ne3 {[%emt 0:00:09]} O-O {[%emt 0:00:08]} 10. O-O {[%emt 0:00:18]} Qg6 {[%emt 0:00:19]} 11. c4 {[%emt 0:04:32]} Nf6 {[%emt 0:05:54]} 12. a3 {[%emt 0:05:13]} Bd7 {[%emt 0:12:52]} 13. b4 {[%emt 0:00:27]} Ne7 {[%emt 0:10:36]} 14. Ne5 {[%emt 0:02:20]} Qe8 {[%emt 0:02:35]} 15. Bb2 {[%emt 0:04:36]} dxc4 {[%emt 0:01:17]} 16. Bxc4 {[%emt 0:01:15]} Ned5 {[%emt 0:00:45]} 17. Qb3 {[%emt 0:02:46]} c6 {[%emt 0:00:47]} 18. Rae1 {[%emt 0:09:18]} Qh5 {[%emt 0:06:33]} 19. f4 {[%emt 0:01:44]} Bxe5 {[%emt 0:05:36]} 20. dxe5 {[%emt 0:02:03]} Ng4 {[%emt 0:00:38]} 21. Nxg4 {[%emt 0:01:32]} Qxg4 {[%emt 0:00:07]} 22. h3 {[%emt 0:09:59]} Qh4 {[%emt 0:04:15]} 23. f5 {[%emt 0:04:55]} Rxf5 {[%emt 0:01:31]} 24. Bxd5 {[%emt 0:09:06]} cxd5 {[%emt 0:02:06]} 25. Rxf5 {[%emt 0:00:39]} Qxe1+ {[%emt 0:00:11]} 26. Rf1 {[%emt 0:00:07]} Qe4 {[%emt 0:00:55]} 27. Qf3 {[%emt 0:00:56]} Qxf3 {[%emt 0:01:04]} 28. Rxf3 {[%emt 0:00:10]} Rc8 {[%emt 0:00:16]} 1/2-1/2

[Event "WSTCC-50 2020"]
[Site "Prague"]
[Date "2020.03.12"]
[Round "7.24"]
[White "Lawrence, Paul"]
[Black "Barron, Michael"]
[Result "0-1"]
[ECO "A88"]
[WhiteElo "1894"]
[BlackElo "2075"]
[Annotator "ChessBase"]
[PlyCount "38"]
[EventDate "2020.03.06"]
[EventType "team-tourn"]
[EventCountry "CZE"]
[SourceTitle "playchess.com"]
[Source "ChessBase"]
[SourceQuality "1"]
[TimeControl "40/5400+30:1800+30"]

1. c4 {[%emt 0:00:00]} f5 {[%emt 0:00:00]} 2. d4 {[%emt 0:00:38]} Nf6 {[%emt 0:00:00]} 3. Nc3 {[%emt 0:00:04]} d6 {[%emt 0:00:00]} 4. Nf3 {[%emt 0:00:52]} g6 {[%emt 0:00:00]} 5. g3 {[%emt 0:01:17]} Bg7 {[%emt 0:00:00]} 6. Bg2 {[%emt 0:00:07]} O-O {[%emt 0:00:01]} 7. O-O {[%emt 0:06:49]} c6 {[%emt 0:00:03]} 8. Bd2 {[%emt 0:05:59]} h6 {[%emt 0:01:07]} 9. Qc2 {[%emt 0:13:40]} Na6 {[%emt 0:01:27]} 10. a3 {[%emt 0:02:32]} Bd7 {[%emt 0:00:54]} 11. Nh4 {[%emt 0:11:55]} Qe8 {[%emt 0:01:05]} 12. b4 {[%emt 0:05:55]} e5 {[%emt 0:05:53]} 13. dxe5 {[%emt 0:05:52]} dxe5 {[%emt 0:00:28]} 14. e4 {[%emt 0:02:33]} f4 {[%emt 0:01:38]} 15. gxf4 {[%emt 0:05:19]} exf4 {[%emt 0:00:29]} 16. Bxf4 {[%emt 0:15:31]} g5 {[%emt 0:00:03]} 17. e5 {[%emt 0:00:13]} Ng4 {[%emt 0:03:29]} 18. Ng6 {[%emt 0:04:12]} Bf5 {[%emt 0:00:49]} 19. Be4 {[%emt 0:00:34]} Qxg6 {[%emt 0:00:03]} 0-1